lending/lending_fUSD_20240128
["ID","MTS","AMOUNT","RATE_DAILY","PERIOD"]
[312937466,1706470288366,-574.75,0.00053424,31]
[312937467,1706470288377,-500.0,0.00053424,31]
[312937468,1706470288386,-320.54718488,0.00053424,31]
[312937469,1706470288395,-500.0,0.00053424,31]
[312937470,1706470288404,-500.0,0.00053424,31]
[312937471,1706470288414,-500.0,0.00053424,31]
[312937472,1706470288426,-500.0,0.00053424,31]
[312937473,1706470288435,-315.20805223,0.00053424,2]
[312937474,1706470288444,-259.07219732,0.00053424,31]
[312937475,1706470288454,-500.0,0.00053424,2]
[312937476,1706470288463,-500.0,0.00053424,31]
[312937477,1706470288472,-1240.16,0.00053424,2]
[312937478,1706470288481,-674.38,0.00053424,31]
[312937479,1706470288490,-500.0,0.00053424,31]
[312937480,1706470288498,-734.77,0.00053424,2]
[312937481,1706470288508,-500.0,0.00053424,31]
[312937482,1706470288517,-500.0,0.00053424,31]
[312937483,1706470288526,-500.0,0.00053424,31]
[312937484,1706470288535,-500.0,0.00053424,31]
[312937485,1706470288544,-500.0,0.00053424,31]
[312937486,1706470288554,-500.0,0.00053424,31]
[312937487,1706470288631,-500.0,0.00053424,31]
[312937488,1706470288641,-500.0,0.00053424,31]
[312937489,1706470288651,-500.0,0.00053424,31]
[312937490,1706470288660,-500.0,0.00053424,31]
[312937491,1706470288670,-500.0,0.00053424,31]
[312937492,1706470288679,-500.0,0.00053424,31]
[312937493,1706470288688,-500.0,0.00053424,31]
[312937494,1706470288697,-500.0,0.00053424,31]
[312937495,1706470288706,-268.22342892,0.00053424,31]
[312937496,1706470288715,-1012.49,0.00053424,7]
[312937497,1706470288724,-500.0,0.00053424,31]
[312937498,1706470288733,-600.0,0.00053424,120]
[312937499,1706470288743,-500.0,0.00053424,31]
[312937500,1706470288752,-500.0,0.00053424,31]
[312937501,1706470288761,-500.0,0.00053424,31]
[312937502,1706470288771,-500.0,0.00053424,31]
[312937503,1706470288780,-500.0,0.00053424,31]
[312937504,1706470288789,-500.0,0.00053424,31]
[312937505,1706470288800,-500.0,0.00053424,31]
[312937506,1706470288810,-500.0,0.00053424,31]
[312937507,1706470288819,-500.0,0.00053424,31]
[312937508,1706470288828,-500.0,0.00053424,31]
[312937509,1706470288838,-1000.0,0.00053424,2]
[312937510,1706470288847,-500.0,0.00053424,31]
[312937511,1706470288856,-500.0,0.00053424,31]
[312937512,1706470288865,-500.0,0.00053424,31]
[312937513,1706470288875,-500.0,0.00053424,31]
[312937514,1706470288885,-500.0,0.00053424,31]
[312937515,1706470288894,-524.66,0.00053424,31]
[312937516,1706470288903,-942.54,0.00053424,31]
[312937517,1706470288913,-500.0,0.00053424,31]
[312937518,1706470288922,-500.0,0.00053424,31]
[312937519,1706470288931,-500.0,0.00053424,31]
[312937520,1706470288940,-500.0,0.00053424,31]
[312937521,1706470288949,-500.0,0.00053424,31]
[312937522,1706470288958,-500.0,0.00053424,31]
[312937523,1706470288967,-500.0,0.00053424,31]
[312937524,1706470288977,-500.0,0.00053424,31]
[312937525,1706470288989,-500.0,0.00053424,31]
[312937526,1706470289001,-500.0,0.00053424,31]
[312937527,1706470289015,-500.0,0.00053424,31]
[312937528,1706470289025,-500.0,0.00053424,31]
[312937529,1706470289034,-500.0,0.00053424,31]
[312937530,1706470289044,-500.0,0.00053424,31]
[312937531,1706470289055,-513.19,0.00053424,31]
[312937532,1706470289067,-797.06,0.00053424,2]
[312937533,1706470289076,-500.0,0.00053424,31]
[312937534,1706470289087,-1179.11,0.00053424,7]
[312937535,1706470289096,-500.0,0.00053424,120]
[312937536,1706470289105,-500.0,0.00053424,120]
[312937537,1706470289114,-500.0,0.00053424,31]
[312937538,1706470289124,-500.0,0.00053424,31]
[312937539,1706470289133,-500.0,0.00053424,120]
[312937540,1706470289142,-500.0,0.00053424,120]
[312937541,1706470289151,-500.0,0.00053424,120]
[312937542,1706470289160,-500.0,0.00053424,120]
[312937543,1706470289170,-500.0,0.00053424,31]
[312937544,1706470289179,-500.0,0.00053424,31]
[312937545,1706470289188,-500.0,0.00053424,14]
[312937546,1706470289197,-500.0,0.00053424,31]
[312937547,1706470289206,-500.0,0.00053424,31]
[312937548,1706470289215,-506.17,0.00053424,31]
[312937549,1706470289224,-500.0,0.00053424,31]
[312937550,1706470289233,-537.17,0.00053424,31]
[312937551,1706470289242,-546.99,0.00053424,31]
[312937552,1706470289250,-500.0,0.00053424,31]
[312937553,1706470289259,-500.0,0.00053424,31]
[312937554,1706470289268,-500.0,0.00053424,31]
[312937555,1706470289277,-500.0,0.00053424,31]
[312937556,1706470289286,-500.0,0.00053424,31]
[312937557,1706470289296,-500.0,0.00053424,31]
[312937558,1706470289306,-500.0,0.00053424,31]
[312937559,1706470289315,-500.0,0.00053424,31]
[312937560,1706470289324,-500.0,0.00053424,31]
[312937561,1706470289334,-500.0,0.00053424,31]
[312937562,1706470289342,-500.0,0.00053424,31]
[312937563,1706470289352,-500.0,0.00053424,31]
[312937564,1706470289361,-322.56,0.00053424,31]
[312937565,1706470289371,-500.0,0.00053424,31]
[312937566,1706470289380,-500.0,0.00053424,31]
[312937567,1706470289390,-500.0,0.00053424,31]
[312937568,1706470289399,-500.0,0.00053424,31]
[312937569,1706470289409,-500.02,0.00053424,31]
[312937570,1706470289418,-500.0,0.00053424,31]
[312937571,1706470289427,-247.26,0.00053424,31]
[312937572,1706470289436,-500.0,0.00053424,31]
[312937573,1706470289446,-500.0,0.00053424,31]
[312937574,1706470289455,-500.0,0.00053424,31]
[312937575,1706470289465,-500.0,0.00053424,31]
[312937576,1706470289474,-500.0,0.00053424,31]
[312937577,1706470289484,-500.0,0.00053424,31]
[312937578,1706470289493,-296.30496593,0.00053424,31]
[312937579,1706470289503,-500.0,0.00053424,31]
[312937580,1706470289513,-500.0,0.00053424,31]
[312937581,1706470289523,-1086.47,0.00053424,31]
[312937582,1706470289533,-500.0,0.00053424,31]
[312937583,1706470289542,-500.0,0.00053424,31]
[312937584,1706470289552,-500.0,0.00053424,31]
[312937585,1706470289562,-500.0,0.00053424,31]
[312937586,1706470289572,-500.0,0.00053424,31]
[312937587,1706470289582,-500.0,0.00053424,31]
[312937588,1706470289591,-500.0,0.00053424,31]
[312937589,1706470289601,-500.0,0.00053424,31]
[312937590,1706470289610,-500.0,0.00053424,31]
[312937591,1706470289621,-500.0,0.00053424,31]
[312937592,1706470289631,-500.0,0.00053424,31]
[312937593,1706470289641,-500.0,0.00053424,31]
[312937594,1706470289650,-500.0,0.00053424,31]
[312937595,1706470289659,-500.0,0.00053424,31]
[312937596,1706470289669,-500.0,0.00053424,31]
[312937597,1706470289678,-500.0,0.00053424,31]
[312937598,1706470289687,-500.0,0.00053424,31]
[312937599,1706470289699,-500.0,0.00053424,31]
[312937600,1706470289708,-500.0,0.00053424,31]
[312937601,1706470289718,-500.0,0.00053424,31]
[312937602,1706470289728,-500.0,0.00053424,31]
[312937603,1706470289737,-500.0,0.00053424,31]
[312937604,1706470289747,-500.0,0.00053424,31]
[312937605,1706470289760,-500.0,0.00053424,31]
[312937606,1706470289770,-500.0,0.00053424,31]
[312937607,1706470289780,-500.0,0.00053424,31]
[312937608,1706470289790,-500.0,0.00053424,31]
[312937609,1706470289799,-500.0,0.00053424,31]
[312937610,1706470289809,-1000.0,0.00053424,7]
[312937611,1706470289819,-500.0,0.00053424,31]
[312937612,1706470289829,-500.0,0.00053424,31]
[312937613,1706470289838,-500.0,0.00053424,31]
[312937614,1706470289848,-500.0,0.00053424,31]
[312937615,1706470289857,-500.0,0.00053424,31]
[312937616,1706470289867,-500.0,0.00053424,31]
[312937617,1706470289878,-500.0,0.00053424,31]
[312937618,1706470289888,-500.0,0.00053424,31]
[312937619,1706470289898,-500.0,0.00053424,31]
[312937620,1706470289907,-500.0,0.00053424,31]
[312937621,1706470289917,-228.57992692,0.00053424,30]
[312937622,1706470289926,-500.0,0.00053424,31]
[312937623,1706470289936,-500.0,0.00053424,31]
[312937624,1706470289946,-500.0,0.00053424,31]
[312937625,1706470289958,-500.0,0.00053424,31]
[312937626,1706470289967,-500.0,0.00053424,31]
[312937627,1706470289977,-500.0,0.00053424,31]
[312937628,1706470289987,-500.0,0.00053424,31]
[312937629,1706470289997,-500.0,0.00053424,31]
[312937630,1706470290009,-500.0,0.00053424,31]
[312937631,1706470290019,-500.0,0.00053424,31]
[312937632,1706470290029,-500.0,0.00053424,31]
[312937633,1706470290038,-500.0,0.00053424,31]
[312937634,1706470290048,-500.0,0.00053424,31]
[312937635,1706470290059,-958.05,0.00053424,31]
[312937636,1706470290069,-500.0,0.00053424,31]
[312937637,1706470290079,-500.0,0.00053424,31]
[312937638,1706470290089,-866.15,0.00053424,31]
[312937639,1706470290099,-500.0,0.00053424,31]
[312937640,1706470290109,-1000.0,0.00053424,7]
[312937641,1706470290120,-1465.95,0.00053424,31]
[312937642,1706470290129,-500.0,0.00053424,31]
[312937643,1706470290139,-558.8,0.00053424,31]
[312937644,1706470290150,-702.82,0.00053424,31]
[312937645,1706470290161,-500.0,0.00053424,31]
[312937646,1706470290172,-528.63,0.00053424,31]
[312937647,1706470290182,-1050.63,0.00053424,31]
[312937648,1706470290192,-500.0,0.00053424,31]
[312937649,1706470290202,-2515.85,0.00053424,5]
[312937650,1706470290212,-538.33,0.00053424,31]
[312937651,1706470290222,-500.0,0.00053424,31]
[312937652,1706470290231,-500.0,0.00053424,31]
[312937653,1706470290241,-518.95,0.00053424,31]
[312937654,1706470290251,-585.24,0.00053424,31]
[312937655,1706470290261,-540.09,0.00053424,31]
[312937656,1706470290270,-500.0,0.00053424,31]
[312937657,1706470290280,-500.0,0.00053424,31]
[312937658,1706470290291,-500.0,0.00053424,31]
[312937659,1706470290301,-500.0,0.00053424,31]
[312937660,1706470290311,-500.0,0.00053424,31]
[312937661,1706470290321,-450.0,0.00053424,120]
[312937662,1706470290331,-604.09,0.00053424,31]
[312937663,1706470290341,-500.0,0.00053424,31]
[312937664,1706470290351,-500.0,0.00053424,31]
[312937665,1706470290361,-980.3,0.00053424,31]
[312937666,1706470290371,-667.98,0.00053424,2]
[312937667,1706470290381,-500.0,0.00053424,31]
[312937668,1706470290391,-1037.01,0.00053424,31]
[312937669,1706470290400,-500.0,0.00053424,31]
[312937670,1706470290410,-935.8,0.00053424,31]
[312937671,1706470290420,-1201.8,0.00053424,31]
[312937672,1706470290431,-500.0,0.00053424,31]
[312937673,1706470290441,-500.0,0.00053424,31]
[312937674,1706470290450,-649.1,0.00053424,31]
[312937675,1706470290460,-1061.64,0.00053424,31]
[312937676,1706470290469,-500.0,0.00053424,31]
[312937677,1706470290479,-500.0,0.00053424,31]
[312937678,1706470290489,-500.0,0.00053424,31]
[312937679,1706470290498,-934.77,0.00053424,31]
[312937680,1706470290508,-687.49,0.00053424,31]
[312937681,1706470290518,-500.0,0.00053424,31]
[312937682,1706470290528,-710.56,0.00053424,31]
[312937683,1706470290538,-596.07,0.00053424,31]
[312937684,1706470290547,-500.0,0.00053424,31]
[312937685,1706470290557,-500.0,0.00053424,31]
[312937686,1706470290566,-500.0,0.00053424,31]
[312937687,1706470290576,-735.56,0.00053424,31]
[312937688,1706470290586,-500.0,0.00053424,31]
[312937689,1706470290596,-500.0,0.00053424,31]
[312937690,1706470290606,-500.0,0.00053424,31]
[312937691,1706470290616,-500.0,0.00053424,31]
[312937692,1706470290626,-500.0,0.00053424,31]
[312937693,1706470290635,-500.0,0.00053424,31]
[312937694,1706470290646,-692.89,0.00053424,31]
[312937695,1706470290655,-500.0,0.00053424,31]
[312937696,1706470290666,-760.18,0.00053424,31]
[312937697,1706470290675,-500.0,0.00053424,31]
[312937698,1706470290685,-500.0,0.00053424,31]
[312937699,1706470290695,-500.0,0.00053424,31]
[312937700,1706470290705,-500.0,0.00053424,31]
[312937701,1706470290715,-500.0,0.00053424,31]
[312937702,1706470290726,-537.29,0.00053424,31]
[312937703,1706470290737,-500.0,0.00053424,31]
[312937704,1706470290747,-500.0,0.00053424,31]
[312937705,1706470290757,-670.03,0.00053424,31]
[312937706,1706470290767,-949.98,0.00053424,31]
[312937707,1706470290777,-500.0,0.00053424,31]
[312937708,1706470290787,-500.0,0.00053424,31]
[312937709,1706470290798,-500.0,0.00053424,31]
[312937710,1706470290808,-500.0,0.00053424,31]
[312937711,1706470290818,-500.0,0.00053424,31]
[312937712,1706470290828,-1013.95,0.00053424,31]
[312937713,1706470290837,-550.0,0.00053424,30]
[312937714,1706470290848,-500.0,0.00053424,31]
[312937715,1706470290858,-500.0,0.00053424,31]
[312937716,1706470290868,-500.0,0.00053424,31]
[312937717,1706470290879,-500.0,0.00053424,31]
[312937718,1706470290890,-500.0,0.00053424,31]
[312937719,1706470290899,-635.57,0.00053424,31]
[312937720,1706470290910,-500.0,0.00053424,31]
[312937721,1706470290919,-500.0,0.00053424,31]
[312937722,1706470290929,-600.05,0.00053424,31]
[312937723,1706470290939,-500.0,0.00053424,31]
[312937724,1706470290949,-500.0,0.00053424,31]
[312937725,1706470290958,-500.0,0.00053424,31]
[312937726,1706470290969,-500.0,0.00053424,31]
[312937727,1706470290979,-500.0,0.00053424,31]
[312937728,1706470290989,-500.0,0.00053424,31]
[312937729,1706470291001,-500.0,0.00053424,31]
[312937730,1706470291011,-500.0,0.00053424,31]
[312937731,1706470291021,-576.89,0.00053424,31]
[312937732,1706470291031,-913.1,0.00053424,31]
[312937733,1706470291041,-500.0,0.00053424,31]
[312937734,1706470291051,-500.0,0.00053424,31]
[312937735,1706470291061,-699.2,0.00053424,31]
[312937736,1706470291070,-859.35,0.00053424,31]
[312937737,1706470291081,-500.0,0.00053424,31]
[312937738,1706470291091,-500.0,0.00053424,31]
[312937739,1706470291101,-500.0,0.00053424,31]
[312937740,1706470291111,-555.13193286,0.00053424,31]
[312937741,1706470291121,-500.0,0.00053424,31]
[312937742,1706470291131,-500.0,0.00053424,31]
[312937743,1706470291141,-500.0,0.00053424,31]
[312937744,1706470291151,-500.0,0.00053424,31]
[312937745,1706470291162,-500.0,0.00053424,31]
[312937746,1706470291173,-500.0,0.00053424,31]
[312937747,1706470291183,-500.0,0.00053424,31]
[312937748,1706470291193,-566.54,0.00053424,31]
[312937749,1706470291203,-500.0,0.00053424,31]
[312937750,1706470291214,-500.0,0.00053424,31]
[312937751,1706470291224,-500.0,0.00053424,31]
[312937752,1706470291235,-500.0,0.00053424,31]
[312937753,1706470291245,-500.0,0.00053424,31]
[312937754,1706470291256,-500.0,0.00053424,31]
[312937755,1706470291266,-500.0,0.00053424,31]
[312937756,1706470291275,-663.0,0.00053424,31]
[312937757,1706470291285,-500.0,0.00053424,31]
[312937758,1706470291295,-524.36,0.00053424,31]
[312937759,1706470291305,-500.0,0.00053424,31]
[312937760,1706470291316,-500.0,0.00053424,31]
[312937761,1706470291326,-500.0,0.00053424,31]
[312937762,1706470291336,-993.17,0.00053424,5]
[312937763,1706470291477,-500.0,0.00053424,31]
[312937764,1706470291488,-500.0,0.00053424,31]
[312937765,1706470291498,-1426.33,0.00053424,31]
[312937766,1706470291507,-1254.98,0.00053424,7]
[312937767,1706470291517,-1000.0,0.00053424,31]
[312937768,1706470291528,-500.0,0.00053424,31]
[312937769,1706470291538,-593.23,0.00053424,31]
[312937770,1706470291548,-500.0,0.00053424,31]
[312937771,1706470291557,-500.0,0.00053424,31]
[312937772,1706470291567,-787.1,0.00053424,31]
[312937773,1706470291577,-500.0,0.00053424,31]
[312937774,1706470291587,-500.0,0.00053424,31]
[312937775,1706470291596,-727.11,0.00053424,31]
[312937776,1706470291606,-1003.11,0.00053424,31]
[312937777,1706470291616,-500.0,0.00053424,31]
[312937778,1706470291626,-500.0,0.00053424,31]
[312937779,1706470291635,-500.0,0.00053424,31]
[312937780,1706470291645,-500.0,0.00053424,31]
[312937781,1706470291655,-500.0,0.00053424,14]
[312937782,1706470291665,-865.33,0.00053424,31]
[312937783,1706470291674,-500.0,0.00053424,31]
[312937784,1706470291683,-729.98,0.00053424,31]
[312937785,1706470291693,-500.0,0.00053424,31]
[312937786,1706470291702,-500.0,0.00053424,31]
[312937787,1706470291712,-500.0,0.00053424,31]
[312937788,1706470291721,-571.22,0.00053424,31]
[312937789,1706470291730,-500.0,0.00053424,31]
[312937790,1706470291739,-500.0,0.00053424,31]
[312937791,1706470291748,-500.0,0.00053424,31]
[312937792,1706470291758,-733.2,0.00053424,31]
[312937793,1706470291767,-829.02,0.00053424,31]
[312937794,1706470291777,-500.0,0.00053424,31]
[312937795,1706470291787,-500.0,0.00053424,31]
[312937796,1706470291796,-500.0,0.00053424,31]
[312937797,1706470291806,-500.0,0.00053424,31]
[312937798,1706470291815,-573.62,0.00053424,31]
[312937799,1706470291826,-500.0,0.00053424,31]
[312937800,1706470291836,-1000.0,0.00053424,20]
[312937801,1706470291845,-649.52,0.00053424,31]
[312937802,1706470291855,-1000.0,0.00053424,20]
[312937803,1706470291866,-1000.0,0.00053424,20]
[312937804,1706470291875,-1000.0,0.00053424,20]
[312937805,1706470291885,-834.44,0.00053424,31]
[312937806,1706470291895,-1000.0,0.00053424,20]
[312937807,1706470291905,-851.16,0.00053424,31]
[312937808,1706470291915,-1000.0,0.00053424,20]
[312937809,1706470291925,-875.07,0.00053424,31]
[312937810,1706470291935,-1079.37,0.00053424,31]
[312937811,1706470291946,-1018.07,0.00053424,31]
[312937812,1706470291957,-500.0,0.00053424,31]
[312937813,1706470291968,-995.96,0.00053424,31]
[312937814,1706470291978,-500.0,0.00053424,31]
[312937815,1706470291989,-500.0,0.00053424,31]
[312937816,1706470291998,-500.0,0.00053424,31]
[312937817,1706470292011,-780.4,0.00053424,31]
[312937818,1706470292021,-500.0,0.00053424,31]
[312937819,1706470292031,-500.0,0.00053424,31]
[312937820,1706470292041,-500.0,0.00053424,31]
[312937821,1706470292051,-500.0,0.00053424,7]
[312937822,1706470292061,-709.25,0.00053424,31]
[312937823,1706470292071,-500.0,0.00053424,31]
[312937824,1706470292083,-500.0,0.00053424,31]
[312937825,1706470292094,-500.0,0.00053424,31]
[312937826,1706470292103,-500.0,0.00053424,31]
[312937827,1706470292113,-500.0,0.00053424,31]
[312937828,1706470292123,-500.0,0.00053424,31]
[312937829,1706470292133,-500.0,0.00053424,31]
[312937830,1706470292143,-500.0,0.00053424,31]
[312937831,1706470292153,-500.0,0.00053424,31]
[312937832,1706470292162,-500.0,0.00053424,31]
[312937833,1706470292172,-500.0,0.00053424,31]
[312937834,1706470292182,-500.0,0.00053424,31]
[312937835,1706470292192,-1254.44,0.00053424,31]
[312937836,1706470292202,-667.21,0.00053424,31]
[312937837,1706470292211,-500.0,0.00053424,31]
[312937838,1706470292221,-500.0,0.00053424,31]
[312937839,1706470292231,-500.0,0.00053424,31]
[312937840,1706470292240,-500.0,0.00053424,31]
[312937841,1706470292250,-500.0,0.00053424,31]
[312937842,1706470292260,-500.0,0.00053424,31]
[312937843,1706470292270,-500.0,0.00053424,31]
[312937844,1706470292279,-500.0,0.00053424,31]
[312937845,1706470292289,-500.0,0.00053424,31]
[312937846,1706470292299,-500.0,0.00053424,31]
[312937847,1706470292308,-500.0,0.00053424,31]
[312937848,1706470292320,-752.97,0.00053424,31]
[312937849,1706470292330,-521.4,0.00053424,31]
[312937850,1706470292342,-500.0,0.00053424,31]
[312937851,1706470292351,-769.32,0.00053424,31]
[312937852,1706470292361,-500.0,0.00053424,31]
[312937853,1706470292371,-500.0,0.00053424,31]
[312937854,1706470292380,-780.39,0.00053424,31]
[312937855,1706470292390,-673.98,0.00053424,31]
[312937856,1706470292399,-500.0,0.00053424,31]
[312937857,1706470292409,-500.0,0.00053424,31]
[312937858,1706470292418,-500.0,0.00053424,31]
[312937859,1706470292428,-806.83,0.00053424,31]
[312937860,1706470292438,-500.0,0.00053424,31]
[312937861,1706470292447,-655.92,0.00053424,31]
[312937862,1706470292457,-500.0,0.00053424,31]
[312937863,1706470292466,-809.17,0.00053424,31]
[312937864,1706470292476,-500.0,0.00053424,31]
[312937865,1706470292485,-500.0,0.00053424,31]
[312937866,1706470292495,-500.0,0.00053424,31]
[312937867,1706470292504,-922.9,0.00053424,31]
[312937868,1706470292514,-150.31,0.00053425,2]
[312937869,1706470292523,-500.0,0.00053425,90]
[312937870,1706470292533,-158.32544091,0.00053425,60]
[312937871,1706470292542,-150.0,0.00053425,30]
[312937872,1706470292551,-150.0,0.00053425,30]
[312937873,1706470292560,-150.0,0.00053425,30]
[312937874,1706470292569,-155.0,0.00053427,2]
[312937875,1706470292579,-22417.87362761,0.00053432,5]
[312937876,1706470292590,-360.32885597,0.00053434,60]
[312937877,1706470292600,-1313.94861369,0.00053451,60]
[312937878,1706470292609,-153.79459058,0.00053452,60]
[312937879,1706470292619,-153.61013365,0.00053456,60]
[312937880,1706470292629,-154.39943299,0.00053458,60]
[312937881,1706470292639,-4919.44512171,0.0005346,120]
[312937882,1706470292648,-154.39943299,0.00053465,60]
[312937883,1706470292657,-152.50530026,0.00053466,60]
[312937884,1706470292667,-201.18589708,0.00053467,60]
[312937885,1706470292676,-360.32885597,0.0005347,60]
[312937886,1706470292686,-153.79459058,0.00053477,60]
[312937887,1706470292695,-201.18589708,0.00053484,60]
[312937888,1706470292705,-153.60830703,0.00053487,30]
[312937889,1706470292715,-154.39943299,0.00053488,60]
[312937890,1706470292725,-152.68540592,0.00053491,57]
[312937891,1706470292735,-51572.95386573,0.00053496,15]
[312937892,1706470292745,-4726.66404395,0.00053496,15]
[312937893,1706470292754,-1847.1907774,0.00053496,15]
[312937894,1706470292764,-4354.1652776,0.00053496,15]
[312937895,1706470292773,-7488.3827928,0.00053496,15]
[312937896,1706470292783,-5000.0,0.00053497,6]
[312937897,1706470292793,-360.32885597,0.00053498,60]
[312937898,1706470292803,-736313.2705262,0.000535,120]
[312937899,1706470292812,-210.47085859,0.000535,7]
[312937900,1706470292822,-6432.29279313,0.000535,7]
[312937901,1706470292831,-163.82500026,0.000535,2]
[312937902,1706470292840,-2227.2783913,0.000535,15]
[312937903,1706470292850,-2247.89256333,0.000535,10]
[312937904,1706470292861,-500.0,0.000535,10]
[312937905,1706470292871,-619.0,0.000535,120]
[312937906,1706470292882,-268.229501,0.000535,30]
[312937907,1706470292893,-175.82197617,0.00053504,60]
[312937908,1706470292903,-162.77789855,0.00053506,60]
[312937909,1706470292913,-150.50894753,0.00053511,60]
[312937910,1706470292922,-152.50530026,0.00053521,60]
[312937911,1706470292933,-789.07,0.00053523,2]
[312937912,1706470292944,-158.50191844,0.00053526,60]
[312937913,1706470292954,-360.32885597,0.00053536,60]
[312937914,1706470292964,-854.0,0.00053539,30]
[312937915,1706470292974,-499.0,0.00053539,30]
[312937916,1706470292984,-54780.0,0.00053539,30]
[312937917,1706470292993,-151.44914822,0.00053539,60]
[312937918,1706470293006,-919.66051627,0.00053539,60]
[312937919,1706470293016,-262.36008467,0.00053539,13]
[312937920,1706470293026,-195.56655507,0.00053539,13]
[312937921,1706470293035,-173.99940086,0.0005354,60]
[312937922,1706470293045,-919.66051627,0.00053541,60]
[312937923,1706470293055,-150.0,0.00053543,30]
[312937924,1706470293064,-158.32544091,0.00053543,60]
[312937925,1706470293074,-168.67913053,0.00053547,60]
[312937926,1706470293084,-919.66051627,0.00053551,60]
[312937927,1706470293094,-50000.0,0.00053555,14]
[312937928,1706470293103,-176.875,0.00053576,60]
[312937929,1706470293113,-150.50894753,0.00053578,60]
[312937930,1706470293124,-1313.94861369,0.00053583,60]
[312937931,1706470293133,-154.39943299,0.00053586,60]
[312937932,1706470293144,-1313.94861369,0.00053589,60]
[312937933,1706470293153,-201.18589708,0.00053599,60]
[312937934,1706470293163,-489.71573801,0.00053601,60]
[312937935,1706470293172,-157.72167214,0.00053614,60]
[312937936,1706470293182,-158.50191844,0.00053614,60]
[312937937,1706470293191,-150.0,0.00053621,30]
[312937938,1706470293201,-919.66051627,0.00053623,60]
[312937939,1706470293210,-151.44914822,0.00053629,60]
[312937940,1706470293220,-500.0,0.00053631,120]
[312937941,1706470293230,-1313.94861369,0.00053632,60]
[312937942,1706470293239,-201.18589708,0.00053648,60]
[312937943,1706470293248,-175.82197617,0.00053656,60]
[312937944,1706470293258,-157.72167214,0.0005367,60]
[312937945,1706470293267,-151.44914822,0.00053681,60]
[312937946,1706470293276,-1313.94861369,0.00053692,60]
[312937947,1706470293286,-154.39943299,0.00053695,60]
[312937948,1706470293295,-155.47766133,0.00053698,4]
[312937949,1706470293304,-1033.92055253,0.00053698,7]
[312937950,1706470293314,-856.10256511,0.00053698,4]
[312937951,1706470293323,-155.59130604,0.00053698,4]
[312937952,1706470293333,-500.0,0.00053698,31]
[312937953,1706470293342,-500.0,0.00053698,31]
[312937954,1706470293352,-500.0,0.00053698,31]
[312937955,1706470293362,-500.0,0.00053698,31]
[312937956,1706470293373,-500.0,0.00053698,31]
[312937957,1706470293382,-500.0,0.00053698,31]
[312937958,1706470293390,-563.76,0.00053698,31]
[312937959,1706470293399,-500.0,0.00053698,31]
[312937960,1706470293409,-500.0,0.00053698,31]
[312937961,1706470293418,-500.0,0.00053698,31]
[312937962,1706470293428,-500.0,0.00053698,31]
[312937963,1706470293438,-500.0,0.00053698,31]
[312937964,1706470293447,-500.0,0.00053698,31]
[312937965,1706470293457,-500.0,0.00053698,31]